[Event "NJSK 2022 Jeugd B"]
[Site "Almelo, Netherlands"]
[Date "2022.05.06"]
[Round "6.2"]
[White "Smid, Jelle"]
[Black "Van der Hagen, Loek"]
[Result "1/2-1/2"]
[TimeControl "90min/40moves + 30min + 30sec/move"]
[WhiteElo "1450"]
[BlackElo "2071"]

1. d4 {[%clk 01:30:57]} {[%emt 00:00:02]} Nf6 {[%clk 01:30:57]} {[%emt
00:00:04]} 2. Nc3 {[%emt 00:00:20]} d5 {[%clk 01:31:13]} 3. Bf4 {[%clk
01:31:44]} {[%emt 00:00:06]} e6 {[%clk 01:31:34]} {[%emt 00:00:10]} 4. e3
{[%clk 01:32:01]} {[%emt 00:00:12]} Be7 {[%clk 01:31:19]} {[%emt 00:00:46]} 5.
Nf3 {[%clk 01:32:01]} {[%emt 00:00:29]} O-O {[%clk 01:30:01]} {[%emt 00:01:47]}
6. Bd3 {[%clk 01:31:59]} {[%emt 00:00:32]} a6 {[%clk 01:23:45]} {[%emt
00:06:47]} 7. O-O {[%clk 01:30:53]} {[%emt 00:01:35]} Nh5 {[%clk 01:18:30]}
{[%emt 00:05:46]} 8. Ne5 {[%clk 01:28:09]} {[%emt 00:03:14]} Nxf4 {[%clk
01:18:21]} {[%emt 00:00:40]} 9. exf4 {[%clk 01:28:31]} {[%emt 00:00:07]} g6
{[%clk 01:16:08]} {[%emt 00:02:43]} 10. Re1 {[%clk 01:26:18]} {[%emt 00:02:43]}
c5 {[%clk 01:13:32]} {[%emt 00:03:07]} 11. dxc5 {[%clk 01:24:39]} {[%emt
00:02:08]} Bxc5 {[%clk 01:13:26]} {[%emt 00:00:35]} 12. Qg4 {[%clk 01:23:33]}
{[%emt 00:01:35]} Qf6 {[%clk 01:12:42]} {[%emt 00:01:15]} 13. Qg5 {[%clk
01:14:23]} {[%emt 00:09:40]} Be7 {[%clk 01:10:12]} {[%emt 00:03:00]} 14. h4
{[%clk 01:10:50]} {[%emt 00:04:02]} Nc6 {[%clk 01:07:53]} {[%emt 00:02:50]} 15.
Nxd5 {[%clk 00:59:04]} {[%emt 00:12:15]} exd5 {[%clk 00:49:53]} {[%emt
00:18:31]} 16. Nxc6 {[%clk 00:59:12]} {[%emt 00:00:22]} bxc6 {[%clk 00:47:40]}
{[%emt 00:02:43]} 17. Rxe7 {[%clk 00:59:31]} {[%emt 00:00:11]} Qxb2 {[%clk
00:46:42]} {[%emt 00:01:29]} 18. Rae1 {[%clk 00:58:23]} {[%emt 00:01:37]} Qg7
{[%clk 00:34:58]} {[%emt 00:12:14]} 19. h5 {[%clk 00:55:21]} {[%emt 00:03:31]}
h6 {[%clk 00:30:14]} {[%emt 00:05:14]} 20. Qh4 {[%clk 00:52:40]} {[%emt
00:03:11]} gxh5 {[%clk 00:22:44]} {[%emt 00:08:01]} 21. R1e3 {[%clk 00:42:35]}
{[%emt 00:10:35]} Bg4 {[%clk 00:19:58]} {[%emt 00:03:16]} 22. Rg3 {[%clk
00:42:21]} {[%emt 00:00:43]} Rab8 {[%clk 00:06:42]} {[%emt 00:13:46]} 23. c3
{[%clk 00:36:10]} {[%emt 00:06:41]} Rfe8 {[%clk 00:04:10]} {[%emt 00:03:03]} 24.
Rxe8+ {[%clk 00:32:21]} {[%emt 00:04:18]} Rxe8 {[%clk 00:04:39]} {[%emt
00:00:02]} 25. f3 {[%clk 00:32:36]} {[%emt 00:00:14]} Qxc3 {[%clk 00:03:11]}
{[%emt 00:01:59]} 26. fxg4 {[%clk 00:32:49]} {[%emt 00:00:16]} Qd4+ {[%clk
00:01:55]} {[%emt 00:01:47]} 27. Kh2 {[%clk 00:33:03]} {[%emt 00:00:16]} Re3
{[%clk 00:01:46]} {[%emt 00:00:39]} 28. gxh5+ {[%clk 00:32:36]} {[%emt
00:00:56]} Rxg3 {[%clk 00:02:14]} {[%emt 00:00:02]} 29. Qxg3+ {[%clk 00:32:47]}
{[%emt 00:00:19]} Kf8 {[%clk 00:02:43]} 30. f5 {[%clk 00:30:31]} {[%emt
00:02:47]} Qf6 {[%clk 00:01:07]} {[%emt 00:02:06]} 31. Bxa6 {[%clk 00:27:00]}
{[%emt 00:04:01]} Qxf5 {[%clk 00:01:01]} {[%emt 00:00:36]} 32. Qf3 {[%clk
00:26:08]} {[%emt 00:01:22]} Qe5+ {[%clk 00:01:23]} {[%emt 00:00:08]} 33. g3
{[%clk 00:25:46]} {[%emt 00:00:51]} c5 {[%clk 00:01:28]} {[%emt 00:00:26]} 34.
Qe2 {[%clk 00:25:12]} {[%emt 00:01:03]} Qd4 {[%clk 00:01:04]} {[%emt 00:00:55]}
35. a4 {[%clk 00:24:41]} {[%emt 00:01:01]} Qxa4 {[%clk 00:01:08]} {[%emt
00:00:26]} 36. Bb5 {[%clk 00:23:46]} {[%emt 00:01:24]} Qd4 {[%clk 00:01:31]}
{[%emt 00:00:08]} 37. Qe8+ {[%clk 00:22:41]} {[%emt 00:01:36]} Kg7 {[%clk
00:01:36]} {[%emt 00:00:25]} 38. Qe2 {[%clk 00:22:01]} {[%emt 00:01:10]} c4
{[%clk 00:01:33]} {[%emt 00:00:33]} 39. Kh3 {[%clk 00:21:19]} {[%emt 00:01:11]}
c3 {[%clk 00:00:41]} {[%emt 00:01:23]} 40. Bd3 {[%clk 00:21:27]} {[%emt
00:00:22]} Kf8 {[%clk 00:00:47]} {[%emt 00:00:24]} 41. Kg2 {[%clk 00:21:26]}
{[%emt 00:00:30]} Kg7 {[%clk 00:28:03]} {[%emt 00:03:15]} 1/2-1/2

[Event "NJSK 2022 Jeugd B"]
[Site "Almelo, Netherlands"]
[Date "2022.05.06"]
[Round "6.3"]
[White "Achuthan, Dylan"]
[Black "Klaren, Oscar"]
[Result "1/2-1/2"]
[TimeControl "90min/40moves + 30min + 30sec/move"]
[WhiteElo "1995"]
[BlackElo "1878"]

1. e4 {[%clk 01:29:59]} {[%emt 00:00:59]} c5 {[%clk 01:30:54]} {[%emt
00:00:07]} 2. Nf3 {[%clk 01:30:25]} {[%emt 00:00:05]} Nc6 {[%clk 01:31:19]}
{[%emt 00:00:05]} 3. c3 {[%clk 01:30:51]} {[%emt 00:00:04]} Nf6 {[%clk
01:31:42]} {[%emt 00:00:06]} 4. e5 {[%clk 01:31:18]} {[%emt 00:00:04]} Nd5
{[%clk 01:32:07]} {[%emt 00:00:05]} 5. Bb5 {[%clk 01:31:44]} {[%emt 00:00:04]}
g6 {[%clk 01:30:11]} {[%emt 00:02:26]} 6. O-O {[%clk 01:31:44]} {[%emt
00:00:30]} Bg7 {[%clk 01:30:33]} {[%emt 00:00:08]} 7. Re1 {[%clk 01:32:07]}
{[%emt 00:00:06]} O-O {[%clk 01:30:23]} {[%emt 00:00:41]} 8. d4 {[%clk
01:31:57]} {[%emt 00:00:40]} cxd4 {[%clk 01:30:47]} {[%emt 00:00:06]} 9. cxd4
{[%clk 01:32:12]} {[%emt 00:00:15]} d6 {[%clk 01:29:53]} {[%emt 00:01:24]} 10.
Nc3 {[%clk 01:32:36]} {[%emt 00:00:05]} Nxc3 {[%clk 01:24:45]} {[%emt
00:05:38]} 11. bxc3 {[%clk 01:32:56]} {[%emt 00:00:11]} dxe5 {[%clk 01:23:30]}
{[%emt 00:01:45]} 12. Bxc6 {[%clk 01:33:01]} {[%emt 00:00:24]} bxc6 {[%clk
01:23:56]} {[%emt 00:00:05]} 13. Nxe5 {[%clk 01:33:26]} {[%emt 00:00:04]} Be6
{[%clk 01:14:21]} {[%emt 00:10:04]} 14. Ba3 {[%clk 01:26:48]} {[%emt 00:07:08]}
Qc7 {[%clk 01:11:38]} {[%emt 00:03:14]} 15. Qa4 {[%clk 01:17:43]} {[%emt
00:09:36]} Rac8 {[%clk 01:06:44]} {[%emt 00:05:24]} 16. Bc5 {[%clk 01:05:26]}
{[%emt 00:12:47]} Rfd8 {[%clk 01:01:22]} {[%emt 00:05:52]} 17. Nd3 {[%clk
00:32:10]} {[%emt 00:33:46]} Rd5 {[%clk 00:46:45]} {[%emt 00:15:07]} 18. Qxa7
{[%clk 00:10:16]} {[%emt 00:22:24]} Qxa7 {[%clk 00:45:07]} {[%emt 00:02:07]} 19.
Bxa7 {[%clk 00:09:43]} {[%emt 00:01:02]} Ra5 {[%clk 00:45:17]} {[%emt
00:00:21]} 20. Bc5 {[%clk 00:09:45]} {[%emt 00:00:29]} Rxa2 {[%clk 00:29:08]}
{[%emt 00:16:38]} 21. Rxa2 {[%clk 00:09:55]} {[%emt 00:00:20]} Bxa2 {[%clk
00:29:36]} {[%emt 00:00:02]} 22. Rxe7 {[%clk 00:04:32]} Bc4 {[%clk 00:25:03]}
{[%emt 00:10:57]} 23. Nb4 {[%clk 00:02:17]} {[%emt 00:02:45]} Bf6 {[%clk
00:09:30]} {[%emt 00:16:02]} 24. Nxc6 {[%clk 00:00:48]} {[%emt 00:01:59]} Bb5
{[%clk 00:07:20]} {[%emt 00:02:39]} 25. Na7 {[%clk 00:00:42]} {[%emt 00:00:37]}
Rxc5 {[%clk 00:06:58]} {[%emt 00:00:52]} 26. dxc5 {[%clk 00:01:04]} {[%emt
00:00:07]} Bxe7 {[%clk 00:07:24]} {[%emt 00:00:04]} 27. Nxb5 {[%clk 00:00:59]}
{[%emt 00:00:35]} Bxc5 {[%clk 00:07:48]} {[%emt 00:00:06]} 28. Kf1 {[%clk
00:01:03]} {[%emt 00:00:25]} Kf8 {[%clk 00:07:59]} {[%emt 00:00:20]} 29. Nd4
{[%clk 00:01:13]} {[%emt 00:00:20]} Ke7 {[%clk 00:06:54]} {[%emt 00:01:33]} 30.
Ke2 {[%clk 00:01:42]} {[%emt 00:00:03]} Kd6 {[%clk 00:06:55]} {[%emt 00:00:29]}
31. Kd3 {[%clk 00:01:21]} {[%emt 00:00:51]} Kd5 {[%clk 00:06:10]} {[%emt
00:01:15]} 32. f3 {[%clk 00:01:11]} {[%emt 00:00:41]} h5 {[%clk 00:04:44]}
{[%emt 00:01:56]} 33. Ne2 {[%clk 00:00:50]} {[%emt 00:00:50]} Bd6 {[%clk
00:04:26]} {[%emt 00:00:48]} 34. g3 {[%clk 00:00:43]} {[%emt 00:00:36]} g5
{[%clk 00:02:48]} {[%emt 00:02:08]} 35. c4+ {[%clk 00:01:03]} {[%emt 00:00:10]}
Ke5 {[%clk 00:02:19]} {[%emt 00:00:58]} 36. Nc3 {[%clk 00:00:37]} {[%emt
00:00:57]} f5 {[%clk 00:01:31]} {[%emt 00:01:17]} 37. Ne2 {[%clk 00:00:35]}
{[%emt 00:00:32]} Bc5 {[%clk 00:01:06]} {[%emt 00:00:55]} 38. Kd2 {[%clk
00:00:32]} {[%emt 00:00:33]} Bb6 {[%clk 00:00:39]} {[%emt 00:00:58]} 39. Kd3
{[%clk 00:00:39]} {[%emt 00:00:23]} Bc5 {[%clk 00:00:43]} {[%emt 00:00:25]} 40.
f4+ {[%clk 00:01:00]} {[%emt 00:00:09]} Kf6 {[%clk 00:00:35]} {[%emt 00:00:39]}
41. Kc3 {[%clk 00:00:39]} {[%emt 00:00:50]} g4 {[%clk 00:30:08]} {[%emt
00:00:57]} 42. Kb3 {[%clk 00:22:33]} {[%emt 00:08:36]} Ke6 {[%clk 00:29:55]}
{[%emt 00:00:43]} 43. Ka4 {[%clk 00:20:12]} {[%emt 00:02:51]} Kd6 {[%clk
00:30:17]} {[%emt 00:00:08]} 44. Kb5 {[%clk 00:20:14]} {[%emt 00:00:28]} Be3
{[%clk 00:30:23]} {[%emt 00:00:24]} 45. c5+ {[%clk 00:16:51]} {[%emt 00:03:54]}
Bxc5 {[%clk 00:24:20]} {[%emt 00:06:32]} 46. Kc4 {[%clk 00:17:15]} {[%emt
00:00:06]} Kc6 {[%clk 00:23:31]} {[%emt 00:01:19]} 47. Nd4+ {[%clk 00:17:37]}
{[%emt 00:00:08]} Bxd4 {[%clk 00:23:51]} {[%emt 00:00:10]} 48. Kxd4 {[%clk
00:18:05]} {[%emt 00:00:03]} Kd6 {[%clk 00:24:16]} {[%emt 00:00:05]} 1/2-1/2

[Event "NJSK 2022 Jeugd B"]
[Site "Almelo, Netherlands"]
[Date "2022.05.06"]
[Round "6.4"]
[White "De Rooij, Kevin"]
[Black "Groen, Jari"]
[Result "1/2-1/2"]
[TimeControl "90min/40moves + 30min + 30sec/move"]
[WhiteElo "1584"]
[BlackElo "1750"]

1. c4 {[%clk 01:30:59]} {[%emt 00:00:02]} e6 {[%clk 01:30:48]} {[%emt
00:00:12]} 2. e4 {[%clk 01:30:37]} {[%emt 00:00:51]} d5 {[%clk 01:27:11]}
{[%emt 00:04:07]} 3. cxd5 {[%clk 01:26:59]} {[%emt 00:04:08]} exd5 {[%clk
01:24:55]} {[%emt 00:02:47]} 4. exd5 {[%clk 01:25:27]} {[%emt 00:02:02]} Nf6
{[%clk 01:21:39]} {[%emt 00:03:46]} 5. Nc3 {[%clk 01:20:50]} {[%emt 00:05:06]}
g6 {[%clk 01:16:42]} {[%emt 00:05:28]} 6. Nf3 {[%clk 01:17:35]} {[%emt
00:03:45]} Bg7 {[%clk 01:15:57]} {[%emt 00:01:15]} 7. Bb5+ {[%clk 01:16:35]}
{[%emt 00:01:29]} Nbd7 {[%clk 01:11:35]} {[%emt 00:04:53]} 8. Qe2+ {[%clk
01:16:19]} {[%emt 00:00:46]} Qe7 {[%clk 01:08:19]} {[%emt 00:03:46]} 9. Qxe7+
{[%clk 01:16:41]} Kxe7 {[%clk 01:08:45]} {[%emt 00:00:12]} 10. O-O {[%clk
01:17:02]} {[%emt 00:00:09]} Rd8 {[%clk 01:04:47]} {[%emt 00:04:28]} 11. d6+
{[%clk 01:13:01]} {[%emt 00:04:31]} cxd6 {[%clk 01:03:16]} {[%emt 00:02:01]} 12.
d4 {[%clk 01:09:50]} {[%emt 00:03:40]} Nb6 {[%clk 00:58:23]} {[%emt 00:05:24]}
13. Bg5 {[%clk 01:07:32]} {[%emt 00:02:49]} h6 {[%clk 00:46:51]} {[%emt
00:12:02]} 14. Rfe1+ {[%clk 00:56:35]} {[%emt 00:11:26]} Kf8 {[%clk 00:46:08]}
{[%emt 00:01:13]} 15. Bf4 {[%clk 00:54:51]} {[%emt 00:02:14]} Bg4 {[%clk
00:40:20]} {[%emt 00:06:19]} 16. Nd2 {[%clk 00:50:19]} {[%emt 00:05:02]} Nfd5
{[%clk 00:36:32]} {[%emt 00:04:18]} 17. Nxd5 {[%clk 00:48:10]} {[%emt
00:02:39]} Nxd5 {[%clk 00:36:56]} {[%emt 00:00:06]} 18. Be3 {[%clk 00:48:10]}
{[%emt 00:00:30]} Nxe3 {[%clk 00:31:31]} {[%emt 00:05:56]} 19. fxe3 {[%clk
00:48:24]} {[%emt 00:00:16]} Rac8 {[%clk 00:27:24]} {[%emt 00:04:36]} 20. Rac1
{[%clk 00:46:26]} {[%emt 00:02:28]} Bf5 {[%clk 00:23:58]} {[%emt 00:03:58]} 21.
Nb3 {[%clk 00:39:53]} {[%emt 00:07:02]} Rxc1 {[%clk 00:13:52]} {[%emt
00:10:35]} 22. Rxc1 {[%clk 00:40:12]} {[%emt 00:00:11]} Rc8 {[%clk 00:14:15]}
{[%emt 00:00:08]} 23. Rc3 {[%clk 00:37:56]} {[%emt 00:02:46]} Rxc3 {[%clk
00:12:23]} {[%emt 00:02:23]} 24. bxc3 {[%clk 00:38:15]} {[%emt 00:00:11]} b6
{[%clk 00:11:51]} {[%emt 00:01:02]} 25. Nd2 {[%clk 00:38:22]} {[%emt 00:00:22]}
Ke7 {[%clk 00:09:54]} {[%emt 00:02:28]} 26. Kf2 {[%clk 00:38:13]} {[%emt
00:00:40]} d5 {[%clk 00:08:44]} {[%emt 00:01:40]} 27. h3 {[%clk 00:36:55]}
{[%emt 00:01:48]} g5 {[%clk 00:07:59]} {[%emt 00:01:16]} 28. g4 {[%clk
00:35:18]} {[%emt 00:02:06]} Bg6 {[%clk 00:07:10]} {[%emt 00:01:19]} 29. Ke2
{[%clk 00:34:20]} {[%emt 00:01:28]} Ke6 {[%clk 00:06:31]} {[%emt 00:01:09]} 30.
Kf3 {[%clk 00:31:40]} {[%emt 00:03:09]} Bf8 {[%clk 00:04:33]} {[%emt 00:02:29]}
31. c4 {[%clk 00:31:08]} {[%emt 00:01:02]} Bb4 {[%clk 00:03:35]} {[%emt
00:01:28]} 32. cxd5+ {[%clk 00:31:07]} {[%emt 00:00:32]} Kd6 {[%clk 00:01:58]}
{[%emt 00:02:07]} 33. Ne4+ {[%clk 00:29:54]} {[%emt 00:01:42]} Kxd5 {[%clk
00:02:11]} {[%emt 00:00:17]} 34. Nf6+ {[%clk 00:29:07]} {[%emt 00:01:17]} Ke6
{[%clk 00:02:21]} {[%emt 00:00:21]} 35. Ne8 {[%clk 00:28:10]} {[%emt 00:01:27]}
Bf8 {[%clk 00:00:51]} {[%emt 00:02:00]} 36. Bc4+ {[%clk 00:27:36]} {[%emt
00:01:03]} Kd7 {[%clk 00:00:38]} {[%emt 00:00:43]} 37. Nf6+ {[%clk 00:27:52]}
{[%emt 00:00:15]} Ke7 {[%clk 00:00:47]} {[%emt 00:00:21]} 38. Ne4 {[%clk
00:27:55]} {[%emt 00:00:27]} Bg7 {[%clk 00:00:50]} {[%emt 00:00:26]} 39. Ng3
{[%clk 00:27:57]} {[%emt 00:00:28]} Bf8 {[%clk 00:00:36]} {[%emt 00:00:45]} 40.
e4 {[%clk 00:28:10]} {[%emt 00:00:17]} f6 {[%clk 00:00:38]} {[%emt 00:00:28]}
41. Nf5+ {[%clk 00:27:30]} {[%emt 00:01:09]} Bxf5 {[%clk 00:27:51]} {[%emt
00:03:18]} 42. gxf5 {[%clk 00:57:28]} {[%emt 00:00:33]} h5 {[%clk 00:24:44]}
{[%emt 00:03:36]} 43. e5 {[%clk 00:57:39]} {[%emt 00:00:19]} Bh6 {[%clk
00:23:58]} {[%emt 00:01:16]} 44. Ke4 {[%clk 00:57:55]} {[%emt 00:00:14]} g4
{[%clk 00:22:30]} {[%emt 00:01:58]} 45. hxg4 {[%clk 00:58:03]} {[%emt
00:00:22]} hxg4 {[%clk 00:22:55]} {[%emt 00:00:05]} 46. Kd5 {[%clk 00:57:12]}
{[%emt 00:01:20]} g3 {[%clk 00:22:48]} {[%emt 00:00:37]} 47. Bf1 {[%clk
00:57:40]} {[%emt 00:00:02]} Be3 {[%clk 00:22:04]} {[%emt 00:01:12]} 48. Bg2
{[%clk 00:57:42]} {[%emt 00:00:29]} Bf2 {[%clk 00:19:55]} {[%emt 00:02:39]} 49.
Kc4 {[%clk 00:55:19]} {[%emt 00:02:53]} Be3 {[%clk 00:19:19]} {[%emt 00:01:07]}
50. e6 {[%clk 00:54:10]} {[%emt 00:01:40]} Kd6 {[%emt 00:02:17]} 51. a4 {[%clk
00:54:05]} Bf2 {[%clk 00:16:31]} {[%emt 00:02:05]} 52. d5 {[%clk 00:53:55]}
{[%emt 00:00:40]} Be3 {[%clk 00:15:33]} {[%emt 00:01:28]} 53. Kb5 {[%clk
00:54:02]} {[%emt 00:00:23]} Bc5 {[%clk 00:14:04]} {[%emt 00:01:59]} 54. Bh1
{[%clk 00:53:12]} {[%emt 00:01:21]} Kc7 {[%clk 00:12:35]} {[%emt 00:01:59]} 55.
Ka6 {[%clk 00:53:26]} {[%emt 00:00:16]} Kb8 {[%clk 00:12:01]} {[%emt 00:01:03]}
56. Bf3 {[%clk 00:51:10]} {[%emt 00:02:46]} Ba3 {[%clk 00:12:01]} {[%emt
00:00:30]} 57. Kb5 {[%clk 00:51:27]} {[%emt 00:00:13]} Kc7 {[%clk 00:12:18]}
{[%emt 00:00:13]} 58. Bg2 {[%clk 00:51:38]} {[%emt 00:00:19]} Bd6 {[%clk
00:11:08]} {[%emt 00:01:41]} 59. Kc4 {[%clk 00:51:39]} {[%emt 00:00:29]} Ba3
{[%clk 00:10:20]} {[%emt 00:01:17]} 60. Kd4 {[%clk 00:51:45]} {[%emt 00:00:25]}
Bc5+ {[%clk 00:10:09]} {[%emt 00:00:41]} 61. Ke4 {[%clk 00:52:04]} {[%emt
00:00:11]} Kd6 {[%clk 00:10:03]} {[%emt 00:00:37]} 62. Kf4 {[%clk 00:52:13]}
{[%emt 00:00:18]} Bf2 {[%clk 00:10:18]} {[%emt 00:00:16]} 63. Kg4 {[%clk
00:51:45]} {[%emt 00:00:59]} Ke7 {[%clk 00:09:57]} {[%emt 00:00:50]} 64. Kh5
{[%emt 00:03:15]} Bc5 {[%emt 00:00:06]} 65. Kg6 {[%emt 00:00:02]} Ba3 {[%clk
00:09:55]} {[%emt 00:00:08]} 1/2-1/2

[Event "NJSK 2022 Jeugd B"]
[Site "Almelo, Netherlands"]
[Date "2022.05.06"]
[Round "6.5"]
[White "Niemeijer, Leon"]
[Black "Bakija, Alan"]
[Result "1/2-1/2"]
[TimeControl "90min/40moves + 30min + 30sec/move"]
[WhiteElo "1693"]
[BlackElo "1868"]

1. d4 {[%clk 01:30:57]} {[%emt 00:00:02]} d5 {[%clk 01:30:57]} {[%emt
00:00:03]} 2. c4 {[%clk 01:31:23]} {[%emt 00:00:05]} c6 {[%clk 01:31:25]}
{[%emt 00:00:01]} 3. Nf3 {[%clk 01:31:48]} {[%emt 00:00:05]} Nf6 {[%clk
01:31:50]} {[%emt 00:00:07]} 4. e3 {[%clk 01:32:04]} {[%emt 00:00:11]} a6
{[%clk 01:32:05]} {[%emt 00:00:15]} 5. Nc3 {[%clk 01:32:08]} {[%emt 00:00:26]}
Bf5 {[%clk 01:32:30]} {[%emt 00:00:05]} 6. a3 {[%clk 01:30:49]} {[%emt
00:01:50]} e6 {[%clk 01:30:42]} {[%emt 00:02:18]} 7. Nh4 {[%clk 01:30:43]}
{[%emt 00:00:35]} Be4 {[%clk 01:30:48]} {[%emt 00:00:24]} 8. Nxe4 {[%clk
01:30:24]} {[%emt 00:00:49]} Nxe4 {[%clk 01:30:47]} {[%emt 00:00:31]} 9. Nf3
{[%clk 01:30:43]} {[%emt 00:00:10]} Qa5+ {[%clk 01:30:19]} {[%emt 00:00:59]} 10.
Bd2 {[%clk 01:30:37]} {[%emt 00:00:36]} Nxd2 {[%clk 01:30:44]} {[%emt
00:00:05]} 11. Qxd2 {[%clk 01:30:46]} {[%emt 00:00:22]} Qxd2+ {[%clk 01:30:05]}
{[%emt 00:01:09]} 12. Kxd2 {[%clk 01:30:33]} {[%emt 00:00:43]} Nd7 {[%clk
01:29:49]} {[%emt 00:00:46]} 13. c5 {[%clk 01:29:45]} {[%emt 00:01:18]} e5
{[%clk 01:29:12]} {[%emt 00:01:07]} 14. Nxe5 {[%clk 01:28:52]} {[%emt
00:01:22]} Nxe5 {[%clk 01:29:30]} {[%emt 00:00:12]} 15. dxe5 {[%clk 01:29:19]}
{[%emt 00:00:04]} Bxc5 {[%clk 01:29:54]} {[%emt 00:00:06]} 16. b4 {[%clk
01:29:34]} {[%emt 00:00:14]} Be7 {[%clk 01:28:19]} {[%emt 00:02:06]} 17. Bd3
{[%clk 01:29:25]} {[%emt 00:00:39]} f6 {[%clk 01:21:35]} {[%emt 00:07:14]} 18.
e6 {[%clk 01:05:12]} {[%emt 00:24:43]} Bd6 {[%clk 01:21:46]} {[%emt 00:00:18]}
19. f4 {[%clk 01:03:42]} {[%emt 00:01:59]} Ke7 {[%clk 01:22:14]} {[%emt
00:00:03]} 20. f5 {[%clk 01:03:54]} {[%emt 00:00:18]} a5 {[%clk 01:08:36]}
{[%emt 00:14:08]} 21. b5 {[%clk 00:59:06]} {[%emt 00:05:18]} c5 {[%clk
01:07:20]} {[%emt 00:01:46]} 22. a4 {[%clk 00:57:22]} {[%emt 00:02:14]} Rad8
{[%clk 00:38:16]} {[%emt 00:29:34]} 23. Rad1 {[%clk 00:46:24]} {[%emt
00:11:27]} Be5 {[%clk 00:23:00]} {[%emt 00:15:47]} 24. Kc2 {[%clk 00:32:52]}
{[%emt 00:14:02]} b6 {[%clk 00:15:30]} {[%emt 00:07:59]} 25. e4 {[%clk
00:16:24]} {[%emt 00:16:58]} dxe4 {[%clk 00:11:58]} {[%emt 00:04:03]} 26. Bxe4
{[%clk 00:16:30]} {[%emt 00:00:24]} Rxd1 {[%clk 00:10:25]} {[%emt 00:02:02]} 27.
Rxd1 {[%clk 00:16:57]} {[%emt 00:00:03]} Rd8 {[%clk 00:09:48]} {[%emt
00:01:07]} 28. Rxd8 {[%clk 00:15:50]} {[%emt 00:01:37]} Kxd8 {[%clk 00:10:15]}
{[%emt 00:00:04]} 29. h3 {[%clk 00:16:07]} {[%emt 00:00:12]} Ke7 {[%clk
00:10:30]} {[%emt 00:00:14]} 30. Kd3 {[%clk 00:15:38]} {[%emt 00:00:59]} Bc7
{[%clk 00:09:34]} {[%emt 00:01:26]} 31. Bd5 {[%clk 00:15:09]} {[%emt 00:00:59]}
Bd8 {[%clk 00:09:24]} {[%emt 00:00:41]} 32. Ke4 {[%clk 00:15:05]} {[%emt
00:00:34]} Kd6 {[%clk 00:06:07]} {[%emt 00:03:47]} 33. Bc4 {[%clk 00:14:25]}
{[%emt 00:01:09]} Be7 {[%clk 00:06:16]} {[%emt 00:00:22]} 34. g3 {[%clk
00:10:24]} {[%emt 00:04:31]} Bd8 {[%clk 00:06:24]} {[%emt 00:00:52]} 1/2-1/2